{"text_format":"1","workbook":"xlsx","n_sheets":2,"sheets":["Cubicación","presupuesto"],"not_rendered":{"charts":0,"images":0,"macros":0,"external_links":0,"defined_names":3,"comments":0,"pivot_tables":0},"unopened":[],"bounds":{"document_bytes":16777216,"sheet_cells":100000,"rows_first":2000,"rows_last":500,"rows_between":2000,"halvings":0,"cell_chars":16384,"cell_head_chars":4096},"cells_cut":0,"cells_raw":0,"read":"whole","date_system":"1900"}

{"sheet":"Cubicación","index":0,"n_rows":45,"n_cols":7,"rows_kept":45,"cut":false,"hidden":false,"merged":[[41,1,42,1],[2,1,2,6],[6,1,10,1],[37,1,39,1],[18,1,21,1],[22,1,24,1],[12,1,17,1],[25,1,30,1],[31,1,36,1]]}
[]
[]
[null,"PERFILES POR CÁLCULO Y CUBICACIÓN"]
[]
[]
[null,null,null,"Perfil","Longitud Total","Peso Unitario","Peso Total"]
[null,"CERCHA","Cuerda Superior",null,null,null,{"$f":"+F7*E7","v":0}]
[null,null,"Cuerda Inferior",null,null,null,{"$f":"+F8*E8","v":0}]
[null,null,"Diagonal 1",null,null,null,0]
[null,null,"Diagonal 2",null,null,null,0]
[null,null,"Montante",null,null,null,0]
[null,"CRUZ DE SAN ANDRÉS","Longitud total perfil Cruz",null,null,null,{"$f":"+F12*E12","v":0}]
[null,"MP2 FRONTAL","Pie derecho o montante ",null,null,null,0]
[null,null,"Solera Superior",null,null,null,0]
[null,null,"Solera Inferior",null,null,null,0]
[null,null,"Arriostres",null,null,null,0]
[null,null,"Bloqueadores de Giro (BG)",null,null,null,0]
[null,null,"Estabilizador Lateral 50PL085",null,null,null,0]
[null,"ventana","Longitud Total Pie derecho o montante refuerzo en (m)",null,null,null,0]
[null,null,"Longitud Total Pie derecho o montante dintel en (m)",null,null,null,0]
[null,null,"Pefil C dintel m (superior e inferior) (m)",null,null,null,{"$f":"+F21*E21","v":0}]
[null,null,"Despunte perfil CA",null,null,null,0]
[null,"puerta","Longitud Total Pie derecho o montante refuerzo en (m)",null,null,null,0]
[null,null,"Longitud Total Pie derecho o montante dintel en (m)",null,null,null,0]
[null,null,"Pefil C dintel m (superior ) (m)",null,null,null,0]
[null,"MP2 LATERALES (X2)","Pie derecho o montante ",null,null,null,0]
[null,null,"Solera Superior",null,null,null,0]
[null,null,"Solera Inferior",null,null,null,0]
[null,null,"Arriostres",null,null,null,{"$f":"+F29*E29","v":0}]
[null,null,"Bloqueadores de Giro (BG)",null,null,null,0]
[null,null,"Estabilizador Lateral 50PL085",null,null,null,{"$f":"+F31*E31","v":0}]
[null,"MP2 POSTERIOR","Pie derecho o montante ",null,null,null,0]
[null,null,"Solera Superior",null,null,null,0]
[null,null,"Solera Inferior",null,null,null,0]
[null,null,"Arriostres",null,null,null,0]
[null,null,"Bloqueadores de Giro (BG)",null,null,null,0]
[null,null,"Estabilizador Lateral 50PL085",null,null,null,{"$f":"+F37*E37","v":0}]
[null,"FRONTONES (FRONTAL Y TRASERO)","Cuerda Superior",null,null,null,0]
[null,null,"Cuerda Inferior",null,null,null,0]
[null,null,"Pie derecho o montante ",null,null,null,0]
[null,"Encuentro Paneles Estructurales","Encuentros (corresponde a 2 montantes, ver detalle)",null,null,null,0]
[null,"Viga de coronación","Perfil Superior",null,null,null,{"$f":"+F42*E42","v":0}]
[null,null,"Perfil inferior",null,null,null,0]
[null,"Costaneras","Longitud total costaneras",null,null,null,0]
[null,null,null,null,null,"Peso Total",{"$f":"+SUM(G7:G44)","v":0}]

{"sheet":"presupuesto","index":1,"n_rows":49,"n_cols":9,"rows_kept":49,"cut":false,"hidden":false,"merged":[[46,1,47,1],[32,1,37,1],[38,1,40,1],[42,1,43,1],[2,1,2,8],[7,1,11,1],[13,1,18,1],[19,1,22,1],[23,1,25,1],[26,1,31,1]]}
[]
[]
[null,"PRESUPUESTO"]
[]
[]
[]
[null,null,null,"Perfil","Unidad","Cantidad",null,"Precio Unitario","Precio Total"]
[null,"CERCHA","Cuerda Superior",{"$f":"+IF(Cubicación!D7=\"\",\"\",Cubicación!D7)","v":""},"m",{"$f":"+IF(Cubicación!E7=\"\",\"\",Cubicación!E7)","v":""},{"$f":"INDEX(#REF!,MATCH(presupuesto!D8,#REF!,0),MATCH(presupuesto!$C$5,#REF!,0))","v":{"$error":"#REF!"}},null,{"$f":"+IF(F8=\"\",\"\",F8*H8)","v":""}]
[null,null,"Cuerda Inferior",{"$f":"+IF(Cubicación!D8=\"\",\"\",Cubicación!D8)","v":""},"m",{"$f":"+IF(Cubicación!E8=\"\",\"\",Cubicación!E8)","v":""},{"$f":"INDEX(#REF!,MATCH(presupuesto!D9,#REF!,0),MATCH(presupuesto!$C$5,#REF!,0))","v":{"$error":"#REF!"}},null,{"$f":"+IF(F9=\"\",\"\",F9*H9)","v":""}]
[null,null,"Diagonal 1",{"$f":"+IF(Cubicación!D9=\"\",\"\",Cubicación!D9)","v":""},"m",{"$f":"+IF(Cubicación!E9=\"\",\"\",Cubicación!E9)","v":""},{"$f":"INDEX(#REF!,MATCH(presupuesto!D10,#REF!,0),MATCH(presupuesto!$C$5,#REF!,0))","v":{"$error":"#REF!"}},null,""]
[null,null,"Diagonal 2",{"$f":"+IF(Cubicación!D10=\"\",\"\",Cubicación!D10)","v":""},"m",{"$f":"+IF(Cubicación!E10=\"\",\"\",Cubicación!E10)","v":""},{"$f":"INDEX(#REF!,MATCH(presupuesto!D11,#REF!,0),MATCH(presupuesto!$C$5,#REF!,0))","v":{"$error":"#REF!"}},null,""]
[null,null,"Montante",{"$f":"+IF(Cubicación!D11=\"\",\"\",Cubicación!D11)","v":""},"m",{"$f":"+IF(Cubicación!E11=\"\",\"\",Cubicación!E11)","v":""},{"$f":"INDEX(#REF!,MATCH(presupuesto!D12,#REF!,0),MATCH(presupuesto!$C$5,#REF!,0))","v":{"$error":"#REF!"}},null,""]
[null,"CRUZ DE SAN ANDRÉS","Longitud total perfil Cruz",{"$f":"+IF(Cubicación!D12=\"\",\"\",Cubicación!D12)","v":""},"m",{"$f":"+IF(Cubicación!E12=\"\",\"\",Cubicación!E12)","v":""},{"$f":"INDEX(#REF!,MATCH(presupuesto!D13,#REF!,0),MATCH(presupuesto!$C$5,#REF!,0))","v":{"$error":"#REF!"}},null,""]
[null,"MP2 FRONTAL","Pie derecho o montante ",{"$f":"+IF(Cubicación!D13=\"\",\"\",Cubicación!D13)","v":""},"m",{"$f":"+IF(Cubicación!E13=\"\",\"\",Cubicación!E13)","v":""},{"$f":"INDEX(#REF!,MATCH(presupuesto!D14,#REF!,0),MATCH(presupuesto!$C$5,#REF!,0))","v":{"$error":"#REF!"}},null,""]
[null,null,"Solera Superior",{"$f":"+IF(Cubicación!D14=\"\",\"\",Cubicación!D14)","v":""},"m",{"$f":"+IF(Cubicación!E14=\"\",\"\",Cubicación!E14)","v":""},{"$f":"INDEX(#REF!,MATCH(presupuesto!D15,#REF!,0),MATCH(presupuesto!$C$5,#REF!,0))","v":{"$error":"#REF!"}},null,""]
[null,null,"Solera Inferior",{"$f":"+IF(Cubicación!D15=\"\",\"\",Cubicación!D15)","v":""},"m",{"$f":"+IF(Cubicación!E15=\"\",\"\",Cubicación!E15)","v":""},{"$f":"INDEX(#REF!,MATCH(presupuesto!D16,#REF!,0),MATCH(presupuesto!$C$5,#REF!,0))","v":{"$error":"#REF!"}},null,""]
[null,null,"Arriostres",{"$f":"+IF(Cubicación!D16=\"\",\"\",Cubicación!D16)","v":""},"m",{"$f":"+IF(Cubicación!E16=\"\",\"\",Cubicación!E16)","v":""},{"$f":"INDEX(#REF!,MATCH(presupuesto!D17,#REF!,0),MATCH(presupuesto!$C$5,#REF!,0))","v":{"$error":"#REF!"}},null,""]
[null,null,"Bloqueadores de Giro (BG)",{"$f":"+IF(Cubicación!D17=\"\",\"\",Cubicación!D17)","v":""},"m",{"$f":"+IF(Cubicación!E17=\"\",\"\",Cubicación!E17)","v":""},{"$f":"INDEX(#REF!,MATCH(presupuesto!D18,#REF!,0),MATCH(presupuesto!$C$5,#REF!,0))","v":{"$error":"#REF!"}},null,""]
[null,null,"Estabilizador Lateral 50PL085",{"$f":"+IF(Cubicación!D18=\"\",\"\",Cubicación!D18)","v":""},"m",{"$f":"+IF(Cubicación!E18=\"\",\"\",Cubicación!E18)","v":""},{"$f":"INDEX(#REF!,MATCH(presupuesto!D19,#REF!,0),MATCH(presupuesto!$C$5,#REF!,0))","v":{"$error":"#REF!"}},null,""]
[null,"ventana","Longitud Total Pie derecho o montante refuerzo en (m)",{"$f":"+IF(Cubicación!D19=\"\",\"\",Cubicación!D19)","v":""},"m",{"$f":"+IF(Cubicación!E19=\"\",\"\",Cubicación!E19)","v":""},{"$f":"INDEX(#REF!,MATCH(presupuesto!D20,#REF!,0),MATCH(presupuesto!$C$5,#REF!,0))","v":{"$error":"#REF!"}},null,""]
[null,null,"Longitud Total Pie derecho o montante dintel en (m)",{"$f":"+IF(Cubicación!D20=\"\",\"\",Cubicación!D20)","v":""},"m",{"$f":"+IF(Cubicación!E20=\"\",\"\",Cubicación!E20)","v":""},{"$f":"INDEX(#REF!,MATCH(presupuesto!D21,#REF!,0),MATCH(presupuesto!$C$5,#REF!,0))","v":{"$error":"#REF!"}},null,""]
[null,null,"Pefil C dintel m (superior e inferior) (m)",{"$f":"+IF(Cubicación!D21=\"\",\"\",Cubicación!D21)","v":""},"m",{"$f":"+IF(Cubicación!E21=\"\",\"\",Cubicación!E21)","v":""},{"$f":"INDEX(#REF!,MATCH(presupuesto!D22,#REF!,0),MATCH(presupuesto!$C$5,#REF!,0))","v":{"$error":"#REF!"}},null,""]
[null,null,"Despunte perfil CA",{"$f":"+IF(Cubicación!D22=\"\",\"\",Cubicación!D22)","v":""},"m",{"$f":"+IF(Cubicación!E22=\"\",\"\",Cubicación!E22)","v":""},{"$f":"INDEX(#REF!,MATCH(presupuesto!D23,#REF!,0),MATCH(presupuesto!$C$5,#REF!,0))","v":{"$error":"#REF!"}},null,""]
[null,"puerta","Longitud Total Pie derecho o montante refuerzo en (m)",{"$f":"+IF(Cubicación!D23=\"\",\"\",Cubicación!D23)","v":""},"m",{"$f":"+IF(Cubicación!E23=\"\",\"\",Cubicación!E23)","v":""},{"$f":"INDEX(#REF!,MATCH(presupuesto!D24,#REF!,0),MATCH(presupuesto!$C$5,#REF!,0))","v":{"$error":"#REF!"}},null,""]
[null,null,"Longitud Total Pie derecho o montante dintel en (m)",{"$f":"+IF(Cubicación!D24=\"\",\"\",Cubicación!D24)","v":""},"m",{"$f":"+IF(Cubicación!E24=\"\",\"\",Cubicación!E24)","v":""},{"$f":"INDEX(#REF!,MATCH(presupuesto!D25,#REF!,0),MATCH(presupuesto!$C$5,#REF!,0))","v":{"$error":"#REF!"}},null,""]
[null,null,"Pefil C dintel m (superior ) (m)",{"$f":"+IF(Cubicación!D25=\"\",\"\",Cubicación!D25)","v":""},"m",{"$f":"+IF(Cubicación!E25=\"\",\"\",Cubicación!E25)","v":""},{"$f":"INDEX(#REF!,MATCH(presupuesto!D26,#REF!,0),MATCH(presupuesto!$C$5,#REF!,0))","v":{"$error":"#REF!"}},null,""]
[null,"MP2 LATERALES (X2)","Pie derecho o montante ",{"$f":"+IF(Cubicación!D26=\"\",\"\",Cubicación!D26)","v":""},"m",{"$f":"+IF(Cubicación!E26=\"\",\"\",Cubicación!E26)","v":""},{"$f":"INDEX(#REF!,MATCH(presupuesto!D27,#REF!,0),MATCH(presupuesto!$C$5,#REF!,0))","v":{"$error":"#REF!"}},null,""]
[null,null,"Solera Superior",{"$f":"+IF(Cubicación!D27=\"\",\"\",Cubicación!D27)","v":""},"m",{"$f":"+IF(Cubicación!E27=\"\",\"\",Cubicación!E27)","v":""},{"$f":"INDEX(#REF!,MATCH(presupuesto!D28,#REF!,0),MATCH(presupuesto!$C$5,#REF!,0))","v":{"$error":"#REF!"}},null,""]
[null,null,"Solera Inferior",{"$f":"+IF(Cubicación!D28=\"\",\"\",Cubicación!D28)","v":""},"m",{"$f":"+IF(Cubicación!E28=\"\",\"\",Cubicación!E28)","v":""},{"$f":"INDEX(#REF!,MATCH(presupuesto!D29,#REF!,0),MATCH(presupuesto!$C$5,#REF!,0))","v":{"$error":"#REF!"}},null,""]
[null,null,"Arriostres",{"$f":"+IF(Cubicación!D29=\"\",\"\",Cubicación!D29)","v":""},"m",{"$f":"+IF(Cubicación!E29=\"\",\"\",Cubicación!E29)","v":""},{"$f":"INDEX(#REF!,MATCH(presupuesto!D30,#REF!,0),MATCH(presupuesto!$C$5,#REF!,0))","v":{"$error":"#REF!"}},null,""]
[null,null,"Bloqueadores de Giro (BG)",{"$f":"+IF(Cubicación!D30=\"\",\"\",Cubicación!D30)","v":""},"m",{"$f":"+IF(Cubicación!E30=\"\",\"\",Cubicación!E30)","v":""},{"$f":"INDEX(#REF!,MATCH(presupuesto!D31,#REF!,0),MATCH(presupuesto!$C$5,#REF!,0))","v":{"$error":"#REF!"}},null,""]
[null,null,"Estabilizador Lateral 50PL085",{"$f":"+IF(Cubicación!D31=\"\",\"\",Cubicación!D31)","v":""},"m",{"$f":"+IF(Cubicación!E31=\"\",\"\",Cubicación!E31)","v":""},{"$f":"INDEX(#REF!,MATCH(presupuesto!D32,#REF!,0),MATCH(presupuesto!$C$5,#REF!,0))","v":{"$error":"#REF!"}},null,""]
[null,"MP2 POSTERIOR","Pie derecho o montante ",{"$f":"+IF(Cubicación!D32=\"\",\"\",Cubicación!D32)","v":""},"m",{"$f":"+IF(Cubicación!E32=\"\",\"\",Cubicación!E32)","v":""},{"$f":"INDEX(#REF!,MATCH(presupuesto!D33,#REF!,0),MATCH(presupuesto!$C$5,#REF!,0))","v":{"$error":"#REF!"}},null,""]
[null,null,"Solera Superior",{"$f":"+IF(Cubicación!D33=\"\",\"\",Cubicación!D33)","v":""},"m",{"$f":"+IF(Cubicación!E33=\"\",\"\",Cubicación!E33)","v":""},{"$f":"INDEX(#REF!,MATCH(presupuesto!D34,#REF!,0),MATCH(presupuesto!$C$5,#REF!,0))","v":{"$error":"#REF!"}},null,""]
[null,null,"Solera Inferior",{"$f":"+IF(Cubicación!D34=\"\",\"\",Cubicación!D34)","v":""},"m",{"$f":"+IF(Cubicación!E34=\"\",\"\",Cubicación!E34)","v":""},{"$f":"INDEX(#REF!,MATCH(presupuesto!D35,#REF!,0),MATCH(presupuesto!$C$5,#REF!,0))","v":{"$error":"#REF!"}},null,""]
[null,null,"Arriostres",{"$f":"+IF(Cubicación!D35=\"\",\"\",Cubicación!D35)","v":""},"m",{"$f":"+IF(Cubicación!E35=\"\",\"\",Cubicación!E35)","v":""},{"$f":"INDEX(#REF!,MATCH(presupuesto!D36,#REF!,0),MATCH(presupuesto!$C$5,#REF!,0))","v":{"$error":"#REF!"}},null,""]
[null,null,"Bloqueadores de Giro (BG)",{"$f":"+IF(Cubicación!D36=\"\",\"\",Cubicación!D36)","v":""},"m",{"$f":"+IF(Cubicación!E36=\"\",\"\",Cubicación!E36)","v":""},{"$f":"INDEX(#REF!,MATCH(presupuesto!D37,#REF!,0),MATCH(presupuesto!$C$5,#REF!,0))","v":{"$error":"#REF!"}},null,""]
[null,null,"Estabilizador Lateral 50PL085",{"$f":"+IF(Cubicación!D37=\"\",\"\",Cubicación!D37)","v":""},"m",{"$f":"+IF(Cubicación!E37=\"\",\"\",Cubicación!E37)","v":""},{"$f":"INDEX(#REF!,MATCH(presupuesto!D38,#REF!,0),MATCH(presupuesto!$C$5,#REF!,0))","v":{"$error":"#REF!"}},null,""]
[null,"FRONTONES (FRONTAL Y TRASERO)","Cuerda Superior",{"$f":"+IF(Cubicación!D38=\"\",\"\",Cubicación!D38)","v":""},"m",{"$f":"+IF(Cubicación!E38=\"\",\"\",Cubicación!E38)","v":""},{"$f":"INDEX(#REF!,MATCH(presupuesto!D39,#REF!,0),MATCH(presupuesto!$C$5,#REF!,0))","v":{"$error":"#REF!"}},null,""]
[null,null,"Cuerda Inferior",{"$f":"+IF(Cubicación!D39=\"\",\"\",Cubicación!D39)","v":""},"m",{"$f":"+IF(Cubicación!E39=\"\",\"\",Cubicación!E39)","v":""},{"$f":"INDEX(#REF!,MATCH(presupuesto!D40,#REF!,0),MATCH(presupuesto!$C$5,#REF!,0))","v":{"$error":"#REF!"}},null,""]
[null,null,"Pie derecho o montante ",{"$f":"+IF(Cubicación!D40=\"\",\"\",Cubicación!D40)","v":""},"m",{"$f":"+IF(Cubicación!E40=\"\",\"\",Cubicación!E40)","v":""},{"$f":"INDEX(#REF!,MATCH(presupuesto!D41,#REF!,0),MATCH(presupuesto!$C$5,#REF!,0))","v":{"$error":"#REF!"}},null,""]
[null,"Encuentro Paneles Estructurales","Encuentros (corresponde a 2 montantes, ver detalle)",{"$f":"+IF(Cubicación!D41=\"\",\"\",Cubicación!D41)","v":""},"m",{"$f":"+IF(Cubicación!E41=\"\",\"\",Cubicación!E41)","v":""},{"$f":"INDEX(#REF!,MATCH(presupuesto!D42,#REF!,0),MATCH(presupuesto!$C$5,#REF!,0))","v":{"$error":"#REF!"}},null,""]
[null,"Viga de coronación","Perfil Superior U",{"$f":"+IF(Cubicación!D42=\"\",\"\",Cubicación!D42)","v":""},"m",{"$f":"+IF(Cubicación!E42=\"\",\"\",Cubicación!E42)","v":""},{"$f":"INDEX(#REF!,MATCH(presupuesto!D43,#REF!,0),MATCH(presupuesto!$C$5,#REF!,0))","v":{"$error":"#REF!"}},null,""]
[null,null,"Perfil inferior C",{"$f":"+IF(Cubicación!D43=\"\",\"\",Cubicación!D43)","v":""},"m",{"$f":"+IF(Cubicación!E43=\"\",\"\",Cubicación!E43)","v":""},{"$f":"INDEX(#REF!,MATCH(presupuesto!D44,#REF!,0),MATCH(presupuesto!$C$5,#REF!,0))","v":{"$error":"#REF!"}},null,""]
[null,"Costaneras","Longitud total costaneras",{"$f":"+IF(Cubicación!D44=\"\",\"\",Cubicación!D44)","v":""},"m",{"$f":"+IF(Cubicación!E44=\"\",\"\",Cubicación!E44)","v":""},{"$f":"INDEX(#REF!,MATCH(presupuesto!D45,#REF!,0),MATCH(presupuesto!$C$5,#REF!,0))","v":{"$error":"#REF!"}},null,""]
[null,"Policarbonato (m²)","(incluye todos los elementos)",{"$f":"+IF(Cubicación!D45=\"\",\"\",Cubicación!D45)","v":""},"m²",{"$f":"+IF(Cubicación!E45=\"\",\"\",Cubicación!E45)","v":""},null,null,""]
[null,"Fundaciones","Fundación prefabricada con dimensiones según manual",{"$f":"+IF(Cubicación!D46=\"\",\"\",Cubicación!D46)","v":""},"Unidad",{"$f":"+IF(Cubicación!E46=\"\",\"\",Cubicación!E46)","v":""},null,null,""]
[null,null,"Fundación prefabricada con dimensiones según manual",{"$f":"+IF(Cubicación!D47=\"\",\"\",Cubicación!D47)","v":""},"Unidad",{"$f":"+IF(Cubicación!E47=\"\",\"\",Cubicación!E47)","v":""},null,null,""]
[null,null,null,null,null,null,null,"Precio Total",{"$f":"+SUM(I8:I48)","v":0}]